[Event "*** Titled Tuesday Blitz"]
[Site "Chess.com"]
[Date "2019.07.02"]
[Round "5"]
[White "Superfelix"]
[Black "marianokar"]
[Result "0-1"]
[WhiteElo "2354"]
[BlackElo "2461"]
[TimeControl "180+2"]
[EndTime "14:08:04 PDT"]
[Termination "marianokar won by checkmate"]

1. e4 {[%clk 0:02:59.2]} 1... c5 {[%clk 0:02:59.6]} 2. Nf3 {[%clk 0:03:00.2]}
2... d6 {[%clk 0:03:00.8]} 3. d4 {[%clk 0:03:01.4]} 3... cxd4 {[%clk 0:03:01.8]}
4. Nxd4 {[%clk 0:03:02.4]} 4... Nf6 {[%clk 0:03:03.3]} 5. f3 {[%clk 0:03:03.6]}
5... e6 {[%clk 0:02:56]} 6. c4 {[%clk 0:03:04.3]} 6... Be7 {[%clk 0:02:57.1]} 7.
Nc3 {[%clk 0:03:05.4]} 7... O-O {[%clk 0:02:57.8]} 8. Be3 {[%clk 0:03:06.5]}
8... b6 {[%clk 0:02:58.8]} 9. Be2 {[%clk 0:03:07.3]} 9... Bb7 {[%clk 0:03:00.2]}
10. O-O {[%clk 0:03:08.5]} 10... a6 {[%clk 0:02:58.1]} 11. Qd2 {[%clk
0:03:09.4]} 11... Nbd7 {[%clk 0:02:56.2]} 12. Rfc1 {[%clk 0:03:09.4]} 12... Qc7
{[%clk 0:02:57]} 13. a4 {[%clk 0:03:10.3]} 13... Rab8 {[%clk 0:02:52.5]} 14. Kh1
{[%clk 0:03:08.8]} 14... Ne5 {[%clk 0:02:48.7]} 15. b3 {[%clk 0:03:07.9]} 15...
h5 {[%clk 0:02:46.1]} 16. Bf1 {[%clk 0:03:08.1]} 16... h4 {[%clk 0:02:45.9]} 17.
h3 {[%clk 0:03:00.6]} 17... Nh5 {[%clk 0:02:46.3]} 18. Nde2 {[%clk 0:03:00.3]}
18... f5 {[%clk 0:02:35.5]} 19. exf5 {[%clk 0:02:50.4]} 19... Rxf5 {[%clk
0:02:36.1]} 20. Nd4 {[%clk 0:02:50.2]} 20... Ng3+ {[%clk 0:02:34.9]} 21. Kg1
{[%clk 0:02:48.7]} 21... Rf6 {[%clk 0:02:19.6]} 22. Bd3 {[%clk 0:02:41.9]} 22...
Rbf8 {[%clk 0:01:57.5]} 23. Nce2 {[%clk 0:02:16.7]} 23... Nxd3 {[%clk
0:01:50.6]} 24. Qxd3 {[%clk 0:02:15.5]} 24... e5 {[%clk 0:01:52.5]} 25. Nc2
{[%clk 0:02:06.3]} 25... e4 {[%clk 0:00:55.4]} 26. fxe4 {[%clk 0:02:06.3]} 26...
Bxe4 {[%clk 0:00:56.9]} 27. Qd2 {[%clk 0:02:07.5]} 27... Nxe2+ {[%clk
0:00:51.9]} 28. Qxe2 {[%clk 0:02:07.9]} 28... Rg6 {[%clk 0:00:53.1]} 29. g4
{[%clk 0:02:03.9]} 29... hxg3 {[%clk 0:00:46.4]} 30. Nb4 {[%clk 0:01:49.2]}
30... Bf6 {[%clk 0:00:34.2]} 31. Ra2 {[%clk 0:01:43.8]} 31... Be5 {[%clk
0:00:34.7]} 32. Nd5 {[%clk 0:01:42.9]} 32... Bxd5 {[%clk 0:00:23.9]} 33. cxd5
{[%clk 0:01:44.7]} 33... Qd7 {[%clk 0:00:24.6]} 34. Kg2 {[%clk 0:01:31.5]} 34...
b5 {[%clk 0:00:25.2]} 35. axb5 {[%clk 0:01:31.7]} 35... axb5 {[%clk 0:00:27.1]}
36. Ra7 {[%clk 0:01:28.9]} 36... Qf5 {[%clk 0:00:27.9]} 37. Bg1 {[%clk
0:01:23.4]} 37... Rh6 {[%clk 0:00:26.9]} 38. Qg4 {[%clk 0:01:24.1]} 38... Qxg4
{[%clk 0:00:19.2]} 39. hxg4 {[%clk 0:01:26]} 39... Rg6 {[%clk 0:00:19.3]} 40.
Rcc7 {[%clk 0:01:03.5]} 40... Rxg4 {[%clk 0:00:19.5]} 41. Rab7 {[%clk
0:01:03.6]} 41... Rb4 {[%clk 0:00:17.6]} 42. Rc2 {[%clk 0:00:53.2]} 42... Rxb3
{[%clk 0:00:18.3]} 43. Rd2 {[%clk 0:00:54.6]} 43... b4 {[%clk 0:00:18]} 44. Re2
{[%clk 0:00:50.4]} 44... Rf7 {[%clk 0:00:15]} 45. Rb8+ {[%clk 0:00:51.2]} 45...
Kh7 {[%clk 0:00:16.1]} 46. Re4 {[%clk 0:00:52.3]} 46... Kg6 {[%clk 0:00:16.1]}
47. Re2 {[%clk 0:00:52.2]} 47... Rc7 {[%clk 0:00:15.5]} 48. Rb6 {[%clk
0:00:53.1]} 48... Re7 {[%clk 0:00:12.8]} 49. Bc5 {[%clk 0:00:52.5]} 49... Kf5
{[%clk 0:00:11.7]} 50. Bxd6 {[%clk 0:00:51.6]} 50... Bxd6 {[%clk 0:00:12.8]} 51.
Rxd6 {[%clk 0:00:53.4]} 51... Rxe2+ {[%clk 0:00:13.4]} 52. Kh3 {[%clk
0:00:54.9]} 52... Rh2# {[%clk 0:00:14]} 0-1

[Event "*** Titled Tuesday Blitz"]
[Site "Chess.com"]
[Date "2019.07.02"]
[Round "5"]
[White "AndrewMaco"]
[Black "rasmussvane"]
[Result "0-1"]
[WhiteElo "2596"]
[BlackElo "2889"]
[TimeControl "180+2"]
[EndTime "14:08:07 PDT"]
[Termination "rasmussvane won on time"]

1. e4 {[%clk 0:03:01.9]} 1... c6 {[%clk 0:03:01.2]} 2. d4 {[%clk 0:03:02.6]}
2... d5 {[%clk 0:03:02.9]} 3. e5 {[%clk 0:03:04.2]} 3... Bf5 {[%clk 0:03:03.5]}
4. Nf3 {[%clk 0:03:05.9]} 4... e6 {[%clk 0:03:04.6]} 5. Be2 {[%clk 0:03:07.6]}
5... Ne7 {[%clk 0:03:06]} 6. c3 {[%clk 0:03:07.6]} 6... Ng6 {[%clk 0:03:06.3]}
7. O-O {[%clk 0:03:06.9]} 7... Nd7 {[%clk 0:03:05.8]} 8. a4 {[%clk 0:03:06.4]}
8... f6 {[%clk 0:03:05.8]} 9. Ne1 {[%clk 0:02:55.7]} 9... fxe5 {[%clk
0:03:05.1]} 10. g4 {[%clk 0:02:57]} 10... Bxb1 {[%clk 0:03:06]} 11. Rxb1 {[%clk
0:02:55]} 11... exd4 {[%clk 0:02:46.3]} 12. cxd4 {[%clk 0:02:56.9]} 12... Bd6
{[%clk 0:02:46.3]} 13. f4 {[%clk 0:02:57.3]} 13... O-O {[%clk 0:02:47.3]} 14.
Nd3 {[%clk 0:02:58.1]} 14... Qh4 {[%clk 0:02:42.9]} 15. b4 {[%clk 0:02:52.1]}
15... Rf7 {[%clk 0:02:38.2]} 16. Be3 {[%clk 0:02:51.4]} 16... Raf8 {[%clk
0:02:38.5]} 17. Qd2 {[%clk 0:02:50.3]} 17... Nf6 {[%clk 0:02:35.3]} 18. Qe1
{[%clk 0:02:42.8]} 18... Qxe1 {[%clk 0:02:27.7]} 19. Rfxe1 {[%clk 0:02:19.9]}
19... Ne4 {[%clk 0:02:28.8]} 20. Ne5 {[%clk 0:02:21.3]} 20... Bxe5 {[%clk
0:02:15.7]} 21. fxe5 {[%clk 0:02:20.7]} 21... Nc3 {[%clk 0:02:06.4]} 22. Rb2
{[%clk 0:02:19.5]} 22... Nxe2+ {[%clk 0:02:06.9]} 23. Rbxe2 {[%clk 0:02:18.7]}
23... Nf4 {[%clk 0:02:08.3]} 24. Rd2 {[%clk 0:02:17.8]} 24... h5 {[%clk
0:02:00.3]} 25. gxh5 {[%clk 0:02:16.4]} 25... Nxh5 {[%clk 0:02:00.5]} 26. b5
{[%clk 0:02:13.2]} 26... cxb5 {[%clk 0:01:30.1]} 27. axb5 {[%clk 0:02:15.1]}
27... Rc8 {[%clk 0:01:30.9]} 28. Ra2 {[%clk 0:02:06]} 28... b6 {[%clk
0:01:31.7]} 29. Rea1 {[%clk 0:01:43.6]} 29... Rc3 {[%clk 0:01:31.7]} 30. Ra3
{[%clk 0:01:41.5]} 30... Rcc7 {[%clk 0:01:17.4]} 31. Bg5 {[%clk 0:01:35.8]}
31... Kh7 {[%clk 0:01:10.2]} 32. Bd8 {[%clk 0:01:30.8]} 32... Rcd7 {[%clk
0:01:10.9]} 33. Bg5 {[%clk 0:01:27.9]} 33... Kg6 {[%clk 0:01:12.2]} 34. h4
{[%clk 0:01:28.9]} 34... Nf4 {[%clk 0:01:06.5]} 35. Kh2 {[%clk 0:01:10]} 35...
Rc7 {[%clk 0:01:02.4]} 36. R1a2 {[%clk 0:01:01.8]} 36... Kh5 {[%clk 0:00:57.7]}
37. Kg3 {[%clk 0:01:00.3]} 37... Ng6 {[%clk 0:00:50.4]} 38. Bd8 {[%clk
0:01:00.6]} 38... Rcd7 {[%clk 0:00:48]} 39. Bg5 {[%clk 0:01:01.5]} 39... Ne7
{[%clk 0:00:39.5]} 40. Bxe7 {[%clk 0:01:01.3]} 40... Rdxe7 {[%clk 0:00:40]} 41.
Rc3 {[%clk 0:01:02.3]} 41... Rc7 {[%clk 0:00:39.8]} 42. Rac2 {[%clk 0:01:03]}
42... Rxc3+ {[%clk 0:00:37.3]} 43. Rxc3 {[%clk 0:01:04.9]} 43... Re7 {[%clk
0:00:35.4]} 44. Rc6 {[%clk 0:01:04.4]} 44... g5 {[%clk 0:00:36.5]} 45. hxg5
{[%clk 0:01:04.9]} 45... Kxg5 {[%clk 0:00:38.4]} 46. Kf3 {[%clk 0:00:42.7]}
46... Kf5 {[%clk 0:00:39.3]} 47. Ke3 {[%clk 0:00:43.6]} 47... Rh7 {[%clk
0:00:40.3]} 48. Kd3 {[%clk 0:00:36.4]} 48... Rh3+ {[%clk 0:00:40.7]} 49. Kc2
{[%clk 0:00:36.9]} 49... Ra3 {[%clk 0:00:41.5]} 50. Rc7 {[%clk 0:00:31.6]} 50...
Ra5 {[%clk 0:00:33]} 0-1

[Event "*** Titled Tuesday Blitz"]
[Site "Chess.com"]
[Date "2019.07.02"]
[Round "5"]
[White "GukeshDommaraju"]
[Black "GMsKoRPioN"]
[Result "1/2-1/2"]
[WhiteElo "2586"]
[BlackElo "2567"]
[TimeControl "180+2"]
[EndTime "14:08:10 PDT"]
[Termination "Game drawn by repetition"]

1. e4 {[%clk 0:03:01.9]} 1... d6 {[%clk 0:02:56.6]} 2. d4 {[%clk 0:03:02.2]}
2... g6 {[%clk 0:02:57.1]} 3. Nc3 {[%clk 0:03:02.9]} 3... Bg7 {[%clk 0:02:57.2]}
4. Be3 {[%clk 0:03:01.6]} 4... a6 {[%clk 0:02:57.9]} 5. Qd2 {[%clk 0:02:58.7]}
5... b5 {[%clk 0:02:58.8]} 6. h4 {[%clk 0:02:45.4]} 6... Nf6 {[%clk 0:02:57.6]}
7. f3 {[%clk 0:02:41.2]} 7... Nbd7 {[%clk 0:02:56.5]} 8. g4 {[%clk 0:02:36]}
8... Bb7 {[%clk 0:02:56.6]} 9. h5 {[%clk 0:02:34.2]} 9... Rg8 {[%clk 0:02:57.3]}
10. Nh3 {[%clk 0:02:28.1]} 10... Rc8 {[%clk 0:02:55.1]} 11. Nf4 {[%clk
0:02:17.4]} 11... c5 {[%clk 0:02:51.9]} 12. hxg6 {[%clk 0:02:09.1]} 12... hxg6
{[%clk 0:02:52.2]} 13. g5 {[%clk 0:02:10.4]} 13... Nh5 {[%clk 0:02:49.2]} 14.
Nxh5 {[%clk 0:02:04]} 14... gxh5 {[%clk 0:02:50.9]} 15. Rxh5 {[%clk 0:02:05.5]}
15... cxd4 {[%clk 0:02:44]} 16. Bxd4 {[%clk 0:02:06.1]} 16... Ne5 {[%clk
0:02:43.6]} 17. Be2 {[%clk 0:01:59.1]} 17... Qc7 {[%clk 0:01:40.8]} 18. f4
{[%clk 0:01:48.8]} 18... b4 {[%clk 0:01:28.2]} 19. Nd5 {[%clk 0:01:34.3]} 19...
Bxd5 {[%clk 0:01:11.7]} 20. exd5 {[%clk 0:01:36.2]} 20... Nc4 {[%clk 0:01:09.5]}
21. Bxc4 {[%clk 0:01:34.6]} 21... Qxc4 {[%clk 0:01:11.3]} 22. Bxg7 {[%clk
0:01:35]} 22... Rxg7 {[%clk 0:01:13.2]} 23. Rh8+ {[%clk 0:01:20]} 23... Kd7
{[%clk 0:01:14.1]} 24. Rxc8 {[%clk 0:01:20.6]} 24... Kxc8 {[%clk 0:01:09.9]} 25.
O-O-O {[%clk 0:01:15.1]} 25... Qxa2 {[%clk 0:01:03.8]} 26. Qxb4 {[%clk
0:01:15.3]} 26... Rh7 {[%clk 0:01:03.7]} 27. Qc3+ {[%clk 0:00:49.4]} 27... Kd8
{[%clk 0:01:00.8]} 28. Qa3 {[%clk 0:00:36.4]} 28... Qc4 {[%clk 0:00:57.4]} 29.
Kb1 {[%clk 0:00:24.8]} 29... Rh2 {[%clk 0:00:53.5]} 30. Rc1 {[%clk 0:00:24.6]}
30... Rf2 {[%clk 0:00:38.1]} 31. Qe3 {[%clk 0:00:18.7]} 31... Rxf4 {[%clk
0:00:33.2]} 32. Re1 {[%clk 0:00:19.7]} 32... Rf1 {[%clk 0:00:25.7]} 33. Qxe7+
{[%clk 0:00:20.1]} 33... Kc8 {[%clk 0:00:27.1]} 34. Qe8+ {[%clk 0:00:17.6]}
34... Kc7 {[%clk 0:00:28.2]} 35. Qe7+ {[%clk 0:00:14.7]} 35... Kc8 {[%clk
0:00:28.9]} 36. Rc1 {[%clk 0:00:06.9]} 36... Rxc1+ {[%clk 0:00:21]} 37. Kxc1
{[%clk 0:00:08.1]} 37... Qxd5 {[%clk 0:00:22.9]} 38. Qa7 {[%clk 0:00:07.5]}
38... Qxg5+ {[%clk 0:00:23.1]} 39. Kb1 {[%clk 0:00:08.9]} 39... Qd2 {[%clk
0:00:14.2]} 40. Qxa6+ {[%clk 0:00:06.6]} 40... Kd7 {[%clk 0:00:13.8]} 41. Qb7+
{[%clk 0:00:07.9]} 41... Ke6 {[%clk 0:00:13.7]} 42. Qe4+ {[%clk 0:00:09]} 42...
Kd7 {[%clk 0:00:15.1]} 43. Qb7+ {[%clk 0:00:09.7]} 43... Ke6 {[%clk 0:00:16.1]}
44. Qe4+ {[%clk 0:00:10.9]} 44... Kd7 {[%clk 0:00:17.6]} 45. Qb7+ {[%clk
0:00:11.9]} 1/2-1/2

[Event "*** Titled Tuesday Blitz"]
[Site "Chess.com"]
[Date "2019.07.02"]
[Round "5"]
[White "LisikValera"]
[Black "Pechen_Yeltsina"]
[Result "1-0"]
[WhiteElo "2443"]
[BlackElo "2665"]
[TimeControl "180+2"]
[EndTime "14:08:17 PDT"]
[Termination "LisikValera won by checkmate"]

1. d4 {[%clk 0:03:01.9]} 1... d6 {[%clk 0:02:59.4]} 2. c4 {[%clk 0:03:01.2]}
2... e5 {[%clk 0:02:59.7]} 3. Nf3 {[%clk 0:03:00.8]} 3... Nd7 {[%clk 0:02:57.2]}
4. Nc3 {[%clk 0:03:01.2]} 4... g6 {[%clk 0:02:57.9]} 5. e4 {[%clk 0:03:01.5]}
5... Bg7 {[%clk 0:02:58.9]} 6. Be2 {[%clk 0:03:02.2]} 6... Ne7 {[%clk
0:02:59.1]} 7. h4 {[%clk 0:03:01.8]} 7... Nc6 {[%clk 0:02:48.7]} 8. Bg5 {[%clk
0:02:55.4]} 8... f6 {[%clk 0:02:37.5]} 9. Be3 {[%clk 0:02:55.4]} 9... exd4
{[%clk 0:02:21.7]} 10. Nxd4 {[%clk 0:02:52.2]} 10... Nxd4 {[%clk 0:02:17.9]} 11.
Bxd4 {[%clk 0:02:54.1]} 11... O-O {[%clk 0:02:18.3]} 12. h5 {[%clk 0:02:54]}
12... Ne5 {[%clk 0:02:18.3]} 13. hxg6 {[%clk 0:02:50.1]} 13... hxg6 {[%clk
0:02:20.2]} 14. Qd2 {[%clk 0:02:35.7]} 14... Be6 {[%clk 0:02:18.8]} 15. b3
{[%clk 0:02:35.2]} 15... Qd7 {[%clk 0:02:06.5]} 16. f4 {[%clk 0:02:34.3]} 16...
Nc6 {[%clk 0:02:04.9]} 17. Be3 {[%clk 0:02:33.2]} 17... f5 {[%clk 0:02:05.9]}
18. O-O-O {[%clk 0:02:25.1]} 18... fxe4 {[%clk 0:01:50.3]} 19. Nxe4 {[%clk
0:02:19.1]} 19... Qe7 {[%clk 0:01:41.8]} 20. g4 {[%clk 0:02:08.6]} 20... a5
{[%clk 0:01:24.5]} 21. Bf3 {[%clk 0:02:02.9]} 21... a4 {[%clk 0:01:22]} 22. Qh2
{[%clk 0:02:02.2]} 22... Kf7 {[%clk 0:01:13.9]} 23. b4 {[%clk 0:01:32.5]} 23...
Ke8 {[%clk 0:01:03.2]} 24. Ng5 {[%clk 0:01:24.2]} 24... Qf6 {[%clk 0:00:47.9]}
25. Nxe6 {[%clk 0:01:19.1]} 25... Qc3+ {[%clk 0:00:47]} 26. Qc2 {[%clk
0:01:17.6]} 26... Qxe3+ {[%clk 0:00:47.8]} 27. Rd2 {[%clk 0:01:06.5]} 27... Qxe6
{[%clk 0:00:13.9]} 28. Bxc6+ {[%clk 0:00:56.5]} 28... bxc6 {[%clk 0:00:15.8]}
29. Re2 {[%clk 0:00:57.1]} 29... Be5 {[%clk 0:00:17.2]} 30. fxe5 {[%clk
0:00:57.7]} 30... d5 {[%clk 0:00:12.6]} 31. cxd5 {[%clk 0:00:56.5]} 31... cxd5
{[%clk 0:00:14.5]} 32. Kb1 {[%clk 0:00:39.9]} 32... c6 {[%clk 0:00:11]} 33. Rc1
{[%clk 0:00:37.2]} 33... Rb8 {[%clk 0:00:11.2]} 34. a3 {[%clk 0:00:36.5]} 34...
Kd7 {[%clk 0:00:11.6]} 35. Qc5 {[%clk 0:00:33.5]} 35... Rb7 {[%clk 0:00:11.1]}
36. Qxf8 {[%clk 0:00:26.9]} 36... d4 {[%clk 0:00:08.9]} 37. Qd6+ {[%clk
0:00:25.5]} 37... Qxd6 {[%clk 0:00:10.2]} 38. exd6 {[%clk 0:00:27.4]} 38... Kxd6
{[%clk 0:00:12.1]} 39. Rc5 {[%clk 0:00:25.9]} 39... Rf7 {[%clk 0:00:13.4]} 40.
Rd2 {[%clk 0:00:24.7]} 40... Rf4 {[%clk 0:00:14.7]} 41. g5 {[%clk 0:00:25.9]}
41... Rg4 {[%clk 0:00:15.5]} 42. Kc2 {[%clk 0:00:23]} 42... Rf4 {[%clk
0:00:15.3]} 43. Kd3 {[%clk 0:00:18.3]} 43... Rf3+ {[%clk 0:00:16.4]} 44. Kc4
{[%clk 0:00:18]} 44... Rxa3 {[%clk 0:00:18.3]} 45. Rxd4+ {[%clk 0:00:18.8]}
45... Kc7 {[%clk 0:00:17.6]} 46. b5 {[%clk 0:00:19.7]} 46... Rg3 {[%clk
0:00:15.1]} 47. Rxc6+ {[%clk 0:00:20.6]} 47... Kb8 {[%clk 0:00:16.3]} 48. Rd7
{[%clk 0:00:21]} 48... Rg4+ {[%clk 0:00:16]} 49. Kc5 {[%clk 0:00:20.6]} 49... a3
{[%clk 0:00:14.1]} 50. Kb6 {[%clk 0:00:18.5]} 50... Rd4 {[%clk 0:00:13.8]} 51.
Rxd4 {[%clk 0:00:18.7]} 51... a2 {[%clk 0:00:15]} 52. Rd8# {[%clk 0:00:17.3]}
1-0

[Event "*** Titled Tuesday Blitz"]
[Site "Chess.com"]
[Date "2019.07.02"]
[Round "5"]
[White "timator"]
[Black "Ceejay271"]
[Result "1/2-1/2"]
[WhiteElo "2407"]
[BlackElo "2234"]
[TimeControl "180+2"]
[EndTime "14:08:25 PDT"]
[Termination "Game drawn by agreement"]

1. Nf3 {[%clk 0:03:01.9]} 1... Nf6 {[%clk 0:02:59.4]} 2. g3 {[%clk 0:02:59.2]}
2... d5 {[%clk 0:02:58.9]} 3. Bg2 {[%clk 0:02:58.5]} 3... c6 {[%clk 0:02:58.9]}
4. O-O {[%clk 0:02:57.8]} 4... Bg4 {[%clk 0:03:00.4]} 5. d3 {[%clk 0:02:53.8]}
5... Nbd7 {[%clk 0:03:01]} 6. b3 {[%clk 0:02:54.3]} 6... e5 {[%clk 0:03:01.8]}
7. Bb2 {[%clk 0:02:55.8]} 7... Bd6 {[%clk 0:03:03.1]} 8. Nbd2 {[%clk 0:02:57.4]}
8... Qc7 {[%clk 0:03:04.4]} 9. e4 {[%clk 0:02:58.6]} 9... O-O {[%clk 0:03:04.9]}
10. h3 {[%clk 0:02:59]} 10... Bh5 {[%clk 0:03:02.3]} 11. Qe2 {[%clk 0:03:00.1]}
11... Rfe8 {[%clk 0:02:58.2]} 12. Rac1 {[%clk 0:02:55.2]} 12... dxe4 {[%clk
0:02:57.4]} 13. dxe4 {[%clk 0:02:50.1]} 13... Nc5 {[%clk 0:02:38.8]} 14. g4
{[%clk 0:02:46.8]} 14... Bg6 {[%clk 0:02:38]} 15. Nh4 {[%clk 0:02:48.3]} 15...
Ne6 {[%clk 0:02:32.9]} 16. Nc4 {[%clk 0:02:29]} 16... Nf4 {[%clk 0:02:16.9]} 17.
Qe3 {[%clk 0:02:29.3]} 17... b5 {[%clk 0:02:08.1]} 18. Nxd6 {[%clk 0:02:28.6]}
18... Qxd6 {[%clk 0:02:10]} 19. Nf5 {[%clk 0:02:25.4]} 19... Bxf5 {[%clk
0:02:06.2]} 20. exf5 {[%clk 0:02:27.3]} 20... Nxg2 {[%clk 0:02:04.7]} 21. Kxg2
{[%clk 0:02:27.8]} 21... Nd5 {[%clk 0:02:05.5]} 22. Qe4 {[%clk 0:02:21.4]} 22...
Nf4+ {[%clk 0:02:04.6]} 23. Kg3 {[%clk 0:02:18.8]} 23... Qd5 {[%clk 0:02:04.2]}
24. Qxd5 {[%clk 0:02:15.7]} 24... cxd5 {[%clk 0:02:04.7]} 25. Rfe1 {[%clk
0:01:26.7]} 25... f6 {[%clk 0:02:02.1]} 26. Ba3 {[%clk 0:00:41.1]} 26... Rac8
{[%clk 0:01:56.2]} 27. Bb4 {[%clk 0:00:38.7]} 27... Rc6 {[%clk 0:01:50.7]} 28.
Bd2 {[%clk 0:00:19.5]} 28... g5 {[%clk 0:01:50.9]} 29. fxg6 {[%clk 0:00:18.3]}
29... Nxg6 {[%clk 0:01:51.7]} 30. f4 {[%clk 0:00:19.3]} 30... Rec8 {[%clk
0:01:52.2]} 31. f5 {[%clk 0:00:18.6]} 31... Ne7 {[%clk 0:01:41.8]} 32. c3 {[%clk
0:00:20.2]} 32... a5 {[%clk 0:01:37]} 33. h4 {[%clk 0:00:20.2]} 33... a4 {[%clk
0:01:29.3]} 34. Rf1 {[%clk 0:00:20.4]} 34... axb3 {[%clk 0:01:29.1]} 35. axb3
{[%clk 0:00:22.3]} 35... Ra8 {[%clk 0:01:13.2]} 36. Ra1 {[%clk 0:00:21.7]} 36...
Rca6 {[%clk 0:01:10.5]} 37. Rxa6 {[%clk 0:00:20.8]} 37... Rxa6 {[%clk
0:01:12.4]} 38. g5 {[%clk 0:00:22.4]} 38... Kf7 {[%clk 0:01:04.4]} 39. Kg4
{[%clk 0:00:21.6]} 39... Ra2 {[%clk 0:01:01.8]} 40. gxf6 {[%clk 0:00:22.5]}
40... Rxd2 {[%clk 0:01:00.9]} 41. fxe7 {[%clk 0:00:23]} 41... Kxe7 {[%clk
0:01:02.8]} 42. f6+ {[%clk 0:00:22.5]} 42... Kf7 {[%clk 0:01:03.2]} 43. Kf5
{[%clk 0:00:23.9]} 43... e4 {[%clk 0:01:03.5]} 44. Ke5 {[%clk 0:00:23.5]} 44...
e3 {[%clk 0:01:03.6]} 45. Rg1 {[%clk 0:00:22]} 45... e2 {[%clk 0:01:02.6]} 46.
Re1 {[%clk 0:00:23.1]} 46... h5 {[%clk 0:01:02.1]} 47. Kf5 {[%clk 0:00:23.5]}
47... Rd3 {[%clk 0:00:56.7]} 48. Rxe2 {[%clk 0:00:24.1]} 48... Rf3+ {[%clk
0:00:55.1]} 49. Kg5 {[%clk 0:00:24.4]} 49... Rxc3 {[%clk 0:00:54.2]} 50. Re7+
{[%clk 0:00:24.6]} 50... Kf8 {[%clk 0:00:55.3]} 51. Kxh5 {[%clk 0:00:25.9]}
51... Rxb3 {[%clk 0:00:55.9]} 52. Rb7 {[%clk 0:00:26.4]} 52... d4 {[%clk
0:00:55.1]} 53. Kg6 {[%clk 0:00:24.8]} 53... Rg3+ {[%clk 0:00:55.9]} 54. Kf5
{[%clk 0:00:25.9]} 54... d3 {[%clk 0:00:54.2]} 55. Rxb5 {[%clk 0:00:24.2]} 55...
d2 {[%clk 0:00:55.3]} 56. Rd5 {[%clk 0:00:25.4]} 56... Rf3+ {[%clk 0:00:53.2]}
57. Kg6 {[%clk 0:00:22.4]} 57... Rg3+ {[%clk 0:00:54.1]} 58. Kf5 {[%clk
0:00:15.8]} 58... Rf3+ {[%clk 0:00:55]} 59. Kg5 {[%clk 0:00:17.1]} 59... Rg3+
{[%clk 0:00:55.1]} 60. Kf4 {[%clk 0:00:18.4]} 60... Rg2 {[%clk 0:00:56.2]} 61.
h5 {[%clk 0:00:19.8]} 61... Kf7 {[%clk 0:00:56.9]} 62. Rd6 {[%clk 0:00:21.2]}
62... Rh2 {[%clk 0:00:57.5]} 63. Kg4 {[%clk 0:00:16.3]} 63... Rg2+ {[%clk
0:00:57.9]} 64. Kh3 {[%clk 0:00:17.3]} 64... Rf2 {[%clk 0:00:56.8]} 65. Kg3
{[%clk 0:00:18.3]} 65... Rxf6 {[%clk 0:00:57.4]} 66. Rxd2 {[%clk 0:00:19.5]}
66... Kg7 {[%clk 0:00:58.2]} 1/2-1/2

[Event "*** Titled Tuesday Blitz"]
[Site "Chess.com"]
[Date "2019.07.02"]
[Round "5"]
[White "DoHoChess"]
[Black "doons21"]
[Result "1-0"]
[WhiteElo "2560"]
[BlackElo "2442"]
[TimeControl "180+2"]
[EndTime "14:08:27 PDT"]
[Termination "DoHoChess won by resignation"]

1. d4 {[%clk 0:03:01.9]} 1... Nf6 {[%clk 0:02:59.2]} 2. Nc3 {[%clk 0:03:03.8]}
2... d5 {[%clk 0:02:59.7]} 3. Bf4 {[%clk 0:03:05.7]} 3... c6 {[%clk 0:03:00.4]}
4. e3 {[%clk 0:03:06.7]} 4... Qb6 {[%clk 0:03:01.5]} 5. a3 {[%clk 0:03:04.4]}
5... Bf5 {[%clk 0:03:01]} 6. Bd3 {[%clk 0:02:56.2]} 6... Bxd3 {[%clk 0:03:01.3]}
7. cxd3 {[%clk 0:02:58.1]} 7... Nbd7 {[%clk 0:02:51.1]} 8. b4 {[%clk 0:02:50.8]}
8... g6 {[%clk 0:02:48.9]} 9. Na4 {[%clk 0:02:49.9]} 9... Qd8 {[%clk 0:02:49.4]}
10. Nc5 {[%clk 0:02:50]} 10... Nxc5 {[%clk 0:02:30.8]} 11. bxc5 {[%clk
0:02:51.9]} 11... Nh5 {[%clk 0:02:22.9]} 12. Be5 {[%clk 0:02:42.3]} 12... f6
{[%clk 0:02:23.8]} 13. Bg3 {[%clk 0:02:44.2]} 13... Nxg3 {[%clk 0:02:20]} 14.
hxg3 {[%clk 0:02:46.1]} 14... e5 {[%clk 0:02:21.2]} 15. Nf3 {[%clk 0:02:44.1]}
15... Bg7 {[%clk 0:02:18.3]} 16. Qb3 {[%clk 0:02:43.6]} 16... Qe7 {[%clk
0:02:15.1]} 17. O-O {[%clk 0:02:42.6]} 17... O-O {[%clk 0:02:10.7]} 18. Rab1
{[%clk 0:02:42.9]} 18... Rf7 {[%clk 0:02:11.4]} 19. Qa4 {[%clk 0:02:43.3]} 19...
a6 {[%clk 0:01:57.3]} 20. Rb2 {[%clk 0:02:40.8]} 20... Rd8 {[%clk 0:01:58.4]}
21. Rfb1 {[%clk 0:02:39.4]} 21... Rd7 {[%clk 0:01:59.9]} 22. Rb6 {[%clk
0:02:34.3]} 22... h6 {[%clk 0:01:57.1]} 23. Qb4 {[%clk 0:02:30.9]} 23... Kh7
{[%clk 0:01:57]} 24. a4 {[%clk 0:02:31.1]} 24... Qe6 {[%clk 0:01:48.3]} 25. a5
{[%clk 0:02:30.6]} 25... Rfe7 {[%clk 0:01:45.4]} 26. Qd2 {[%clk 0:02:29.3]}
26... Rf7 {[%clk 0:01:20.6]} 27. R1b4 {[%clk 0:02:28.1]} 27... Rfe7 {[%clk
0:01:19.5]} 28. Qb2 {[%clk 0:02:24.1]} 28... Qf7 {[%clk 0:01:20.9]} 29. Qb3
{[%clk 0:02:22.8]} 29... Bh8 {[%clk 0:01:12.6]} 30. dxe5 {[%clk 0:02:20.4]}
30... fxe5 {[%clk 0:01:13]} 31. e4 {[%clk 0:02:22]} 31... Bg7 {[%clk 0:00:59]}
32. Kh2 {[%clk 0:02:10]} 32... Bf6 {[%clk 0:00:41.8]} 33. Kg1 {[%clk 0:02:10]}
33... Kg7 {[%clk 0:00:42.6]} 34. g4 {[%clk 0:02:09.9]} 34... Kh7 {[%clk
0:00:36.7]} 35. g3 {[%clk 0:01:56.1]} 35... Kg7 {[%clk 0:00:37.7]} 36. Kg2
{[%clk 0:01:55.9]} 36... Kh7 {[%clk 0:00:39.1]} 37. Qb2 {[%clk 0:01:56]} 37...
Bg7 {[%clk 0:00:39.3]} 38. Qb3 {[%clk 0:01:50.3]} 38... Re8 {[%clk 0:00:24.5]}
39. Qb2 {[%clk 0:01:50.4]} 39... Rf8 {[%clk 0:00:25.2]} 40. Qe2 {[%clk
0:01:51.2]} 40... Re7 {[%clk 0:00:14.1]} 41. Nd2 {[%clk 0:01:46.9]} 41... Rd7
{[%clk 0:00:13.7]} 42. f3 {[%clk 0:01:44.6]} 42... dxe4 {[%clk 0:00:14.1]} 43.
Nxe4 {[%clk 0:01:40]} 43... Qd5 {[%clk 0:00:14.9]} 44. Rxb7 {[%clk 0:01:37.3]}
44... Rxb7 {[%clk 0:00:14.6]} 45. Rxb7 {[%clk 0:01:38.1]} 45... Qd4 {[%clk
0:00:16.5]} 46. Rc7 {[%clk 0:01:23.9]} 46... Rb8 {[%clk 0:00:17.2]} 47. Kh3
{[%clk 0:01:22.1]} 47... Rb2 {[%clk 0:00:16.5]} 48. Nf6+ {[%clk 0:01:23.2]}
48... Kh8 {[%clk 0:00:17.7]} 49. Rc8+ {[%clk 0:01:24.4]} 49... Bf8 {[%clk
0:00:19.3]} 50. Qe4 {[%clk 0:01:22.9]} 50... Qxe4 {[%clk 0:00:14.1]} 51. Nxe4
{[%clk 0:01:16.7]} 51... Kg7 {[%clk 0:00:16]} 52. Rxc6 {[%clk 0:01:16.2]} 52...
Rb3 {[%clk 0:00:16]} 53. Rxa6 {[%clk 0:01:16]} 53... Rxd3 {[%clk 0:00:16.3]} 54.
Ra7+ {[%clk 0:01:17.5]} 54... Kh8 {[%clk 0:00:17.1]} 55. c6 {[%clk 0:01:17.8]}
55... Rd4 {[%clk 0:00:10.9]} 56. c7 {[%clk 0:01:10.7]} 56... Rc4 {[%clk
0:00:11.9]} 57. a6 {[%clk 0:01:12.3]} 57... Kg8 {[%clk 0:00:11.8]} 58. Rb7
{[%clk 0:01:13.9]} 58... Ba3 {[%clk 0:00:11.1]} 59. a7 {[%clk 0:01:14.8]} 1-0